[Event "Late-Titled-Tuesday-Blitz-March-05-2024"]
[Site "Chess.com"]
[Date "2024.03.05"]
[Round "1"]
[White "Hikaru"]
[Black "Orest_Vovk"]
[Result "1-0"]
[WhiteElo "3257"]
[BlackElo "2533"]
[TimeControl "180+1"]
[EndTime "14:06:34 PST"]
[Termination "Hikaru won by resignation"]

1. Nf3 {[%clk 0:02:55]} 1... h6 {[%clk 0:02:59]} 2. e4 {[%clk 0:02:43.4]} 2...
g5 {[%clk 0:02:55.5]} 3. d4 {[%clk 0:02:35.8]} 3... Bg7 {[%clk 0:02:53.5]} 4.
Bc4 {[%clk 0:02:29.9]} 4... c5 {[%clk 0:02:39.6]} 5. dxc5 {[%clk 0:02:01.7]}
5... Qa5+ {[%clk 0:02:36.8]} 6. c3 {[%clk 0:01:57.6]} 6... Qxc5 {[%clk
0:02:34.4]} 7. Bb3 {[%clk 0:01:55.6]} 7... Nc6 {[%clk 0:02:21.9]} 8. Be3 {[%clk
0:01:55.9]} 8... Qa5 {[%clk 0:02:18.8]} 9. Nbd2 {[%clk 0:01:55]} 9... g4 {[%clk
0:02:14.3]} 10. Nd4 {[%clk 0:01:53.1]} 10... d6 {[%clk 0:01:53.6]} 11. O-O
{[%clk 0:01:47.3]} 11... Nxd4 {[%clk 0:01:30.4]} 12. cxd4 {[%clk 0:01:46.2]}
12... Nf6 {[%clk 0:01:28.9]} 13. e5 {[%clk 0:01:45.9]} 13... dxe5 {[%clk
0:01:17]} 14. Nc4 {[%clk 0:01:46.2]} 14... Qd8 {[%clk 0:01:08.2]} 15. dxe5
{[%clk 0:01:45.9]} 15... Nd5 {[%clk 0:00:39.7]} 16. Nd6+ {[%clk 0:01:34.9]}
16... exd6 {[%clk 0:00:34.4]} 17. Qxd5 {[%clk 0:01:35.2]} 17... O-O {[%clk
0:00:26.1]} 18. exd6 {[%clk 0:01:33.9]} 18... Be6 {[%clk 0:00:23.3]} 19. Qxb7
{[%clk 0:01:33.9]} 19... Qxd6 {[%clk 0:00:16.8]} 20. Rad1 {[%clk 0:01:31.8]}
20... Qe5 {[%clk 0:00:09.1]} 21. Bd4 {[%clk 0:01:29.6]} 21... Qf5 {[%clk
0:00:08.1]} 22. Bxg7 {[%clk 0:01:26.9]} 22... Kxg7 {[%clk 0:00:09]} 23. Rfe1
{[%clk 0:01:25.5]} 23... Bxb3 {[%clk 0:00:05.9]} 24. Qxb3 {[%clk 0:01:26.4]}
24... Rab8 {[%clk 0:00:04.8]} 25. Qc3+ {[%clk 0:01:26.9]} 25... Qf6 {[%clk
0:00:04.9]} 26. Qxf6+ {[%clk 0:01:21.3]} 26... Kxf6 {[%clk 0:00:05.8]} 27. Rd6+
{[%clk 0:01:21.4]} 27... Kg7 {[%clk 0:00:05.8]} 28. b3 {[%clk 0:01:22]} 28...
Rfd8 {[%clk 0:00:05.5]} 29. Ra6 {[%clk 0:01:21.2]} 29... Rb7 {[%clk 0:00:03.1]}
30. Ra4 {[%clk 0:01:19.9]} 30... h5 {[%clk 0:00:02.9]} 31. h3 {[%clk 0:01:20.6]}
31... gxh3 {[%clk 0:00:02.5]} 32. g3 {[%clk 0:01:21.2]} 32... Rd2 {[%clk
0:00:02.5]} 33. Rf1 {[%clk 0:01:19.5]} 33... Rb6 {[%clk 0:00:01.6]} 34. Rxa7
{[%clk 0:01:18.7]} 34... h4 {[%clk 0:00:01.7]} 35. gxh4 {[%clk 0:01:16.5]} 35...
Rg6+ {[%clk 0:00:01.9]} 36. Kh2 {[%clk 0:01:17.1]} 36... Rg2+ {[%clk 0:00:02.1]}
37. Kxh3 {[%clk 0:01:17.5]} 37... Rgxf2 {[%clk 0:00:03]} 38. Rxf2 {[%clk
0:01:18.3]} 38... Rxf2 {[%clk 0:00:03.6]} 39. b4 {[%clk 0:01:15.1]} 39... Rb2
{[%clk 0:00:02.5]} 40. a3 {[%clk 0:01:15.7]} 40... Kg6 {[%clk 0:00:03.3]} 41.
Ra6+ {[%clk 0:01:14.9]} 41... Kh5 {[%clk 0:00:03]} 42. Ra5+ {[%clk 0:01:14.6]}
42... Kg6 {[%clk 0:00:03.4]} 43. h5+ {[%clk 0:01:15.2]} 43... Kh6 {[%clk
0:00:03.5]} 44. Kg4 {[%clk 0:01:16.1]} 44... f6 {[%clk 0:00:03.4]} 45. Kf5
{[%clk 0:01:14.9]} 45... Rf2+ {[%clk 0:00:03.3]} 46. Ke6 {[%clk 0:01:15.4]}
46... Re2+ {[%clk 0:00:01.7]} 47. Kxf6 {[%clk 0:01:15.3]} 1-0

[Event "Late-Titled-Tuesday-Blitz-March-05-2024"]
[Site "Chess.com"]
[Date "2024.03.05"]
[Round "1"]
[White "thesupera12"]
[Black "TigrVShlyape"]
[Result "0-1"]
[WhiteElo "2499"]
[BlackElo "2875"]
[TimeControl "180+1"]
[EndTime "14:06:34 PST"]
[Termination "TigrVShlyape won by resignation"]

1. d4 {[%clk 0:03:00.9]} 1... f5 {[%clk 0:02:59.6]} 2. e4 {[%clk 0:02:57.9]}
2... fxe4 {[%clk 0:02:59.4]} 3. Nc3 {[%clk 0:02:56.6]} 3... Nf6 {[%clk
0:02:59.6]} 4. Bg5 {[%clk 0:02:54.4]} 4... g6 {[%clk 0:02:59.2]} 5. Bxf6 {[%clk
0:02:53.3]} 5... exf6 {[%clk 0:02:58.9]} 6. Nxe4 {[%clk 0:02:54.2]} 6... Qe7
{[%clk 0:02:55.9]} 7. Qe2 {[%clk 0:02:52.1]} 7... f5 {[%clk 0:02:56.2]} 8. Nd2
{[%clk 0:02:49.9]} 8... Bg7 {[%clk 0:02:49.8]} 9. Qxe7+ {[%clk 0:02:47.2]} 9...
Kxe7 {[%clk 0:02:49.6]} 10. c3 {[%clk 0:02:46.1]} 10... Bf6 {[%clk 0:02:28.4]}
11. O-O-O {[%clk 0:02:42.7]} 11... Kf7 {[%clk 0:02:27.5]} 12. Bc4+ {[%clk
0:02:41.3]} 12... Kg7 {[%clk 0:02:27.4]} 13. Ngf3 {[%clk 0:02:40.3]} 13... d6
{[%clk 0:02:24.1]} 14. Rhe1 {[%clk 0:02:38.2]} 14... Nc6 {[%clk 0:02:23.8]} 15.
Nf1 {[%clk 0:02:33.6]} 15... Bd7 {[%clk 0:02:22.1]} 16. Ne3 {[%clk 0:02:31.8]}
16... Rae8 {[%clk 0:02:15.8]} 17. Nd5 {[%clk 0:02:30]} 17... Bd8 {[%clk
0:02:16]} 18. Nf4 {[%clk 0:02:21.7]} 18... Kf6 {[%clk 0:02:09.3]} 19. Nd5+
{[%clk 0:02:18.1]} 19... Kg7 {[%clk 0:02:08.8]} 20. Nf4 {[%clk 0:02:18.4]} 20...
Re4 {[%clk 0:01:40.2]} 21. Ne6+ {[%clk 0:01:57.7]} 21... Kf6 {[%clk 0:01:37.1]}
22. Neg5 {[%clk 0:01:05.7]} 22... Rxe1 {[%clk 0:01:27.3]} 23. Rxe1 {[%clk
0:01:06.6]} 23... h6 {[%clk 0:01:19.6]} 24. Nf7 {[%clk 0:01:04.1]} 24... Rf8
{[%clk 0:01:16.4]} 25. Nxh6 {[%clk 0:00:58.4]} 25... Kg7 {[%clk 0:01:14.2]} 26.
Nf7 {[%clk 0:00:48.8]} 26... Rxf7 {[%clk 0:01:13.8]} 27. Bxf7 {[%clk 0:00:49.6]}
27... Kxf7 {[%clk 0:01:14.1]} 28. Kc2 {[%clk 0:00:47.4]} 28... Bf6 {[%clk
0:01:03.8]} 29. b3 {[%clk 0:00:38.6]} 29... Be6 {[%clk 0:01:02.8]} 30. Rd1
{[%clk 0:00:33.6]} 30... Bd5 {[%clk 0:01:02.4]} 31. Ne1 {[%clk 0:00:31.7]} 31...
b5 {[%clk 0:01:02.5]} 32. f3 {[%clk 0:00:31.8]} 32... g5 {[%clk 0:01:01.2]} 33.
Nd3 {[%clk 0:00:30.1]} 33... a5 {[%clk 0:01:00.6]} 34. a3 {[%clk 0:00:25.8]}
34... a4 {[%clk 0:01:00.4]} 35. bxa4 {[%clk 0:00:21]} 35... bxa4 {[%clk
0:01:00.6]} 36. Rb1 {[%clk 0:00:19.6]} 36... Bb3+ {[%clk 0:01:00.7]} 37. Kd2
{[%clk 0:00:20.3]} 37... Na5 {[%clk 0:01:00.3]} 38. Nc1 {[%clk 0:00:17.5]} 38...
d5 {[%clk 0:00:59.7]} 39. Nxb3 {[%clk 0:00:17]} 39... Nxb3+ {[%clk 0:00:56.8]}
40. Kd3 {[%clk 0:00:17.4]} 40... Be7 {[%clk 0:00:56.5]} 41. c4 {[%clk
0:00:16.9]} 41... dxc4+ {[%clk 0:00:56.3]} 42. Kxc4 {[%clk 0:00:17.8]} 42...
Nd2+ {[%clk 0:00:56.1]} 43. Kb5 {[%clk 0:00:14.5]} 43... Nxb1 {[%clk 0:00:56]}
0-1

[Event "Late-Titled-Tuesday-Blitz-March-05-2024"]
[Site "Chess.com"]
[Date "2024.03.05"]
[Round "1"]
[White "Charodej1"]
[Black "Jarming"]
[Result "0-1"]
[WhiteElo "2333"]
[BlackElo "2634"]
[TimeControl "180+1"]
[EndTime "14:06:34 PST"]
[Termination "Jarming won by resignation"]

1. e4 {[%clk 0:03:00.9]} 1... e5 {[%clk 0:02:57]} 2. Nf3 {[%clk 0:03:00.2]} 2...
Nc6 {[%clk 0:02:56.8]} 3. Bb5 {[%clk 0:03:00.1]} 3... g6 {[%clk 0:02:55.9]} 4.
d4 {[%clk 0:02:56.3]} 4... exd4 {[%clk 0:02:54.8]} 5. Bg5 {[%clk 0:02:54.8]}
5... Be7 {[%clk 0:02:51.9]} 6. Bxe7 {[%clk 0:02:54.2]} 6... Qxe7 {[%clk
0:02:52.8]} 7. Bxc6 {[%clk 0:02:51.6]} 7... dxc6 {[%clk 0:02:51.7]} 8. Qxd4
{[%clk 0:02:50.8]} 8... Nf6 {[%clk 0:02:51]} 9. Nc3 {[%clk 0:02:45.4]} 9... O-O
{[%clk 0:02:50.2]} 10. O-O {[%clk 0:02:33.1]} 10... Be6 {[%clk 0:02:48.6]} 11.
Rad1 {[%clk 0:02:24.6]} 11... Rfd8 {[%clk 0:02:44.6]} 12. Qe5 {[%clk 0:02:20.4]}
12... Rd6 {[%clk 0:02:40.2]} 13. Nd4 {[%clk 0:01:58.4]} 13... Rad8 {[%clk
0:02:34.4]} 14. Nxe6 {[%clk 0:01:56.3]} 14... Rxe6 {[%clk 0:02:33.4]} 15. Rxd8+
{[%clk 0:01:54]} 15... Qxd8 {[%clk 0:02:34.3]} 16. Qg5 {[%clk 0:01:47.9]} 16...
h6 {[%clk 0:02:24.1]} 17. Qxh6 {[%clk 0:01:31.1]} 17... Nxe4 {[%clk 0:02:23.2]}
18. Nxe4 {[%clk 0:01:11.6]} 18... Rxe4 {[%clk 0:02:24.1]} 19. Qh3 {[%clk
0:00:44.2]} 19... Re2 {[%clk 0:02:15.3]} 20. Qc3 {[%clk 0:00:28.1]} 20... Qd5
{[%clk 0:01:46.2]} 21. a3 {[%clk 0:00:23]} 21... a5 {[%clk 0:01:42.8]} 22. Re1
{[%clk 0:00:19.9]} 22... Rxe1+ {[%clk 0:01:30.4]} 23. Qxe1 {[%clk 0:00:20.8]}
23... Kf8 {[%clk 0:01:30.8]} 24. h3 {[%clk 0:00:19]} 24... Qd4 {[%clk 0:01:27]}
25. Qxa5 {[%clk 0:00:17.1]} 25... Qxb2 {[%clk 0:01:16.4]} 26. Qxc7 {[%clk
0:00:17.3]} 26... Qxa3 {[%clk 0:01:11.9]} 27. Qxb7 {[%clk 0:00:17.7]} 27... Qc1+
{[%clk 0:01:11.8]} 28. Kh2 {[%clk 0:00:17.8]} 28... Qxc2 {[%clk 0:01:12.7]} 29.
Qb8+ {[%clk 0:00:15.8]} 29... Kg7 {[%clk 0:01:13.1]} 30. Qe5+ {[%clk 0:00:16.4]}
30... Kh7 {[%clk 0:01:13.2]} 31. Qf6 {[%clk 0:00:15.2]} 31... Qc4 {[%clk
0:01:12.8]} 32. h4 {[%clk 0:00:14.3]} 32... Qd5 {[%clk 0:01:10.4]} 33. f4 {[%clk
0:00:12.2]} 33... c5 {[%clk 0:01:10.7]} 34. g4 {[%clk 0:00:11.3]} 34... c4
{[%clk 0:01:11.1]} 35. f5 {[%clk 0:00:11.4]} 35... gxf5 {[%clk 0:01:09]} 36.
gxf5 {[%clk 0:00:12.3]} 36... Kg8 {[%clk 0:01:03.1]} 37. Qg5+ {[%clk 0:00:12.2]}
37... Kf8 {[%clk 0:01:03.1]} 38. Qh6+ {[%clk 0:00:11.9]} 38... Ke8 {[%clk
0:01:03.1]} 39. Qh8+ {[%clk 0:00:11.9]} 39... Kd7 {[%clk 0:01:03]} 40. Qh5
{[%clk 0:00:09.1]} 40... c3 {[%clk 0:00:59.4]} 0-1

[Event "Late-Titled-Tuesday-Blitz-March-05-2024"]
[Site "Chess.com"]
[Date "2024.03.05"]
[Round "1"]
[White "1g60-1"]
[Black "Mikhail_Golubev"]
[Result "0-1"]
[WhiteElo "2366"]
[BlackElo "2653"]
[TimeControl "180+1"]
[EndTime "14:06:35 PST"]
[Termination "Mikhail_Golubev won by resignation"]

1. e4 {[%clk 0:03:00.4]} 1... c5 {[%clk 0:02:59.3]} 2. Nf3 {[%clk 0:02:59.8]}
2... d6 {[%clk 0:02:59.5]} 3. d4 {[%clk 0:03:00]} 3... Nf6 {[%clk 0:02:59.5]} 4.
Nc3 {[%clk 0:03:00.2]} 4... cxd4 {[%clk 0:02:59.6]} 5. Nxd4 {[%clk 0:03:01.1]}
5... Nc6 {[%clk 0:02:59.2]} 6. f3 {[%clk 0:02:59.6]} 6... e5 {[%clk 0:02:58]} 7.
Nb3 {[%clk 0:02:58.7]} 7... Be7 {[%clk 0:02:58]} 8. Be3 {[%clk 0:02:59.3]} 8...
O-O {[%clk 0:02:57.7]} 9. Qd2 {[%clk 0:02:59.9]} 9... a5 {[%clk 0:02:57.7]} 10.
Bb5 {[%clk 0:02:57.6]} 10... Be6 {[%clk 0:02:57.4]} 11. O-O-O {[%clk 0:02:55.3]}
11... Nb4 {[%clk 0:02:56.6]} 12. g4 {[%clk 0:02:44.6]} 12... d5 {[%clk
0:02:28.5]} 13. g5 {[%clk 0:02:32.6]} 13... Nxe4 {[%clk 0:02:28.3]} 14. fxe4
{[%clk 0:02:30.4]} 14... d4 {[%clk 0:02:28.3]} 15. Qe1 {[%clk 0:02:29.2]} 15...
Bxg5 {[%clk 0:02:16.9]} 16. Bxg5 {[%clk 0:02:25.5]} 16... Qxg5+ {[%clk
0:02:16.7]} 17. Kb1 {[%clk 0:02:25.9]} 17... dxc3 {[%clk 0:02:16]} 18. Rg1
{[%clk 0:02:14.2]} 18... Qe7 {[%clk 0:02:07.1]} 19. Qxc3 {[%clk 0:02:08.7]}
19... Nxa2 {[%clk 0:02:00]} 20. Qxe5 {[%clk 0:01:50.7]} 20... f6 {[%clk
0:02:00]} 21. Qd6 {[%clk 0:01:46]} 21... Qxd6 {[%clk 0:01:58.2]} 22. Rxd6 {[%clk
0:01:46]} 22... Bf7 {[%clk 0:01:53.3]} 23. Nc5 {[%clk 0:01:25]} 23... Nb4 {[%clk
0:01:50.6]} 24. Nd7 {[%clk 0:01:08.7]} 24... Rfd8 {[%clk 0:01:40.4]} 25. Nxf6+
{[%clk 0:01:01]} 25... Kh8 {[%clk 0:01:39.7]} 26. Rxd8+ {[%clk 0:00:56.5]} 26...
Rxd8 {[%clk 0:01:38.9]} 27. Nd7 {[%clk 0:00:52.8]} 27... Be8 {[%clk 0:01:16.1]}
28. c3 {[%clk 0:00:40.9]} 28... Bxd7 {[%clk 0:01:09.2]} 29. Bxd7 {[%clk
0:00:37.7]} 29... Rxd7 {[%clk 0:01:10.1]} 30. cxb4 {[%clk 0:00:38]} 30... axb4
{[%clk 0:01:10.4]} 31. Rc1 {[%clk 0:00:33.8]} 31... g6 {[%clk 0:01:07.1]} 32.
Rc4 {[%clk 0:00:30.7]} 32... b3 {[%clk 0:01:06.3]} 33. Kc1 {[%clk 0:00:30.4]}
33... Kg7 {[%clk 0:01:02.6]} 34. Rb4 {[%clk 0:00:30.6]} 34... Re7 {[%clk
0:01:00.3]} 35. Rxb3 {[%clk 0:00:30.1]} 35... Rxe4 {[%clk 0:00:58.8]} 36. Rxb7+
{[%clk 0:00:30.1]} 36... Kh6 {[%clk 0:00:59.4]} 37. Rc7 {[%clk 0:00:16.5]} 37...
Re1+ {[%clk 0:00:58.3]} 38. Kd2 {[%clk 0:00:14.5]} 38... Rh1 {[%clk 0:00:58]}
39. b4 {[%clk 0:00:13.7]} 39... Rxh2+ {[%clk 0:00:58.3]} 40. Kd3 {[%clk
0:00:14.1]} 40... Rb2 {[%clk 0:00:54.9]} 41. Kc3 {[%clk 0:00:12.9]} 41... Rb1
{[%clk 0:00:54.8]} 42. Kc2 {[%clk 0:00:13.2]} 42... Rxb4 {[%clk 0:00:53.8]} 0-1

[Event "Late-Titled-Tuesday-Blitz-March-05-2024"]
[Site "Chess.com"]
[Date "2024.03.05"]
[Round "1"]
[White "MikeSailer"]
[Black "djano"]
[Result "0-1"]
[WhiteElo "2181"]
[BlackElo "2568"]
[TimeControl "180+1"]
[EndTime "14:06:36 PST"]
[Termination "djano won by checkmate"]

1. d4 {[%clk 0:02:52.9]} 1... Nf6 {[%clk 0:02:58.7]} 2. Bf4 {[%clk 0:02:45.5]}
2... g6 {[%clk 0:02:57]} 3. Nf3 {[%clk 0:02:45.9]} 3... Bg7 {[%clk 0:02:57.3]}
4. e3 {[%clk 0:02:46.5]} 4... d6 {[%clk 0:02:57.8]} 5. Be2 {[%clk 0:02:47.1]}
5... c5 {[%clk 0:02:56.8]} 6. O-O {[%clk 0:02:31.2]} 6... Nh5 {[%clk 0:02:56.6]}
7. Bg5 {[%clk 0:02:30.8]} 7... h6 {[%clk 0:02:56.6]} 8. Bh4 {[%clk 0:02:31.2]}
8... g5 {[%clk 0:02:57.2]} 9. Nfd2 {[%clk 0:02:30.8]} 9... Nf4 {[%clk
0:02:53.3]} 10. exf4 {[%clk 0:02:29.1]} 10... gxh4 {[%clk 0:02:53.5]} 11. Nb3
{[%clk 0:02:09.5]} 11... cxd4 {[%clk 0:02:46.7]} 12. Nxd4 {[%clk 0:02:05.5]}
12... Nc6 {[%clk 0:02:47]} 13. Nxc6 {[%clk 0:02:04.5]} 13... bxc6 {[%clk
0:02:47.9]} 14. c3 {[%clk 0:02:04]} 14... h3 {[%clk 0:02:47.7]} 15. g3 {[%clk
0:02:03.5]} 15... Rb8 {[%clk 0:02:42.4]} 16. Qc2 {[%clk 0:01:57.6]} 16... Qa5
{[%clk 0:02:39.7]} 17. Na3 {[%clk 0:01:39.8]} 17... Bf5 {[%clk 0:02:38.1]} 18.
Qd2 {[%clk 0:01:38.4]} 18... d5 {[%clk 0:02:20.3]} 19. Rfe1 {[%clk 0:01:29]}
19... Qb6 {[%clk 0:02:19.3]} 20. b4 {[%clk 0:00:59.5]} 20... d4 {[%clk
0:02:08.2]} 21. Nc4 {[%clk 0:00:41.4]} 21... dxc3 {[%clk 0:02:06.7]} 22. Qc1
{[%clk 0:00:28.3]} 22... Qxb4 {[%clk 0:02:02]} 23. Ne5 {[%clk 0:00:27.9]} 23...
Qc5 {[%clk 0:01:45.9]} 24. Bf3 {[%clk 0:00:25.2]} 24... Rb2 {[%clk 0:01:36.5]}
25. Rf1 {[%clk 0:00:14.4]} 25... Bxe5 {[%clk 0:01:28.4]} 26. fxe5 {[%clk
0:00:14.4]} 26... Qxe5 {[%clk 0:01:19.3]} 27. Bxc6+ {[%clk 0:00:13.2]} 27... Kf8
{[%clk 0:01:19.8]} 28. Qd1 {[%clk 0:00:05.6]} 28... Qd6 {[%clk 0:01:10.3]} 29.
Qf3 {[%clk 0:00:05.3]} 29... c2 {[%clk 0:00:53.5]} 30. Qxf5 {[%clk 0:00:03.9]}
30... Qxc6 {[%clk 0:00:54]} 31. Rac1 {[%clk 0:00:03.4]} 31... Qg2# {[%clk
0:00:46.3]} 0-1

[Event "Late-Titled-Tuesday-Blitz-March-05-2024"]
[Site "Chess.com"]
[Date "2024.03.05"]
[Round "1"]
[White "Chopper1905"]
[Black "tgpgoat"]
[Result "1-0"]
[WhiteElo "2961"]
[BlackElo "2517"]
[TimeControl "180+1"]
[EndTime "14:06:37 PST"]
[Termination "Chopper1905 won by resignation"]

1. Nf3 {[%clk 0:03:00.9]} 1... Nf6 {[%clk 0:03:00]} 2. c4 {[%clk 0:02:59.6]}
2... e6 {[%clk 0:03:00.9]} 3. Nc3 {[%clk 0:02:59]} 3... d5 {[%clk 0:03:01.4]} 4.
e3 {[%clk 0:02:58.4]} 4... Be7 {[%clk 0:03:01.5]} 5. b3 {[%clk 0:02:57.7]} 5...
O-O {[%clk 0:03:01.8]} 6. Bb2 {[%clk 0:02:58]} 6... dxc4 {[%clk 0:02:57.3]} 7.
Bxc4 {[%clk 0:02:51.6]} 7... c5 {[%clk 0:02:57.7]} 8. g4 {[%clk 0:02:42.6]} 8...
Nc6 {[%clk 0:02:57.1]} 9. g5 {[%clk 0:02:41.8]} 9... Nd5 {[%clk 0:02:57.2]} 10.
Rg1 {[%clk 0:02:37.5]} 10... Bd6 {[%clk 0:02:46.7]} 11. Qc2 {[%clk 0:02:04.4]}
11... Ne5 {[%clk 0:02:38.1]} 12. Nxe5 {[%clk 0:01:39.8]} 12... Bxe5 {[%clk
0:02:37.8]} 13. Qe4 {[%clk 0:01:36.7]} 13... Bxc3 {[%clk 0:01:30.7]} 14. dxc3
{[%clk 0:01:36]} 14... Bd7 {[%clk 0:01:25.3]} 15. O-O-O {[%clk 0:01:28.6]} 15...
Bc6 {[%clk 0:01:23.3]} 16. Bd3 {[%clk 0:01:17]} 16... g6 {[%clk 0:01:17.2]} 17.
c4 {[%clk 0:00:58.3]} 17... Nb4 {[%clk 0:00:44.2]} 18. Qe5 {[%clk 0:00:58.4]}
18... f6 {[%clk 0:00:44.1]} 19. Qxe6+ {[%clk 0:00:53.6]} 19... Rf7 {[%clk
0:00:44.3]} 20. Bxg6 {[%clk 0:00:51.1]} 20... hxg6 {[%clk 0:00:38.6]} 21. Rxd8+
{[%clk 0:00:49.9]} 21... Rxd8 {[%clk 0:00:39.5]} 22. gxf6 {[%clk 0:00:42.4]}
22... Nd3+ {[%clk 0:00:39.8]} 23. Kb1 {[%clk 0:00:41.5]} 23... Nxf2 {[%clk
0:00:39.7]} 24. Rxg6+ {[%clk 0:00:18.8]} 24... Kf8 {[%clk 0:00:38.7]} 25. Rg1
{[%clk 0:00:19.3]} 25... Be4+ {[%clk 0:00:33.3]} 26. Ka1 {[%clk 0:00:19.5]}
26... Bc2 {[%clk 0:00:28.1]} 27. Qe5 {[%clk 0:00:17]} 27... b6 {[%clk
0:00:26.7]} 28. Qg3 {[%clk 0:00:15.5]} 1-0

[Event "Late-Titled-Tuesday-Blitz-March-05-2024"]
[Site "Chess.com"]
[Date "2024.03.05"]
[Round "1"]
[White "Harry_Rakkel"]
[Black "Akhayan"]
[Result "1-0"]
[WhiteElo "2691"]
[BlackElo "2402"]
[TimeControl "180+1"]
[EndTime "14:06:44 PST"]
[Termination "Harry_Rakkel won by checkmate"]

1. e4 {[%clk 0:02:59.2]} 1... c5 {[%clk 0:02:58.2]} 2. Nf3 {[%clk 0:02:58.6]}
2... e6 {[%clk 0:02:58.2]} 3. d4 {[%clk 0:02:58.2]} 3... cxd4 {[%clk 0:02:58.5]}
4. Nxd4 {[%clk 0:02:58.9]} 4... Nf6 {[%clk 0:02:58.9]} 5. Nc3 {[%clk 0:02:57.9]}
5... d6 {[%clk 0:02:59.3]} 6. Be3 {[%clk 0:02:55.1]} 6... a6 {[%clk 0:02:58.8]}
7. Be2 {[%clk 0:02:54.7]} 7... Be7 {[%clk 0:02:59]} 8. a3 {[%clk 0:02:52.6]}
8... O-O {[%clk 0:02:59.3]} 9. g4 {[%clk 0:02:52.1]} 9... d5 {[%clk 0:02:57.7]}
10. exd5 {[%clk 0:02:41.1]} 10... Nxd5 {[%clk 0:02:57.1]} 11. Nxd5 {[%clk
0:02:40.7]} 11... exd5 {[%clk 0:02:52.7]} 12. Qd2 {[%clk 0:02:37.9]} 12... Nc6
{[%clk 0:02:51.1]} 13. O-O-O {[%clk 0:02:37.8]} 13... Bf6 {[%clk 0:02:42.1]} 14.
Kb1 {[%clk 0:02:34.3]} 14... Re8 {[%clk 0:02:36.6]} 15. Rde1 {[%clk 0:02:21]}
15... Be6 {[%clk 0:02:26.5]} 16. h4 {[%clk 0:02:18]} 16... Rc8 {[%clk
0:02:15.1]} 17. f4 {[%clk 0:02:13.3]} 17... Qc7 {[%clk 0:02:11.3]} 18. Nxe6
{[%clk 0:02:08]} 18... fxe6 {[%clk 0:02:07.1]} 19. g5 {[%clk 0:02:07.7]} 19...
Be7 {[%clk 0:02:03.7]} 20. Bg4 {[%clk 0:02:04.1]} 20... Bf8 {[%clk 0:01:51.2]}
21. Bf2 {[%clk 0:01:56.8]} 21... Na5 {[%clk 0:01:39.8]} 22. Bxe6+ {[%clk
0:01:20.4]} 22... Rxe6 {[%clk 0:01:21.4]} 23. Rxe6 {[%clk 0:01:21.3]} 23... Nc4
{[%clk 0:01:20.6]} 24. Qd3 {[%clk 0:01:09.8]} 24... Qxf4 {[%clk 0:01:06.1]} 25.
Bg3 {[%clk 0:01:03]} 25... Qg4 {[%clk 0:00:53.9]} 26. Qxd5 {[%clk 0:00:53.1]}
26... Kh8 {[%clk 0:00:46.5]} 27. Be5 {[%clk 0:00:38.8]} 27... Qh5 {[%clk
0:00:29.3]} 28. Rf1 {[%clk 0:00:35.3]} 28... b5 {[%clk 0:00:26.6]} 29. Rc6
{[%clk 0:00:31.7]} 29... Re8 {[%clk 0:00:24.9]} 30. Bc3 {[%clk 0:00:30.2]} 30...
Qe2 {[%clk 0:00:18.9]} 31. Qf7 {[%clk 0:00:28.4]} 31... Bxa3 {[%clk 0:00:14.4]}
32. Qxg7# {[%clk 0:00:20.5]} 1-0

[Event "Late-Titled-Tuesday-Blitz-March-05-2024"]
[Site "Chess.com"]
[Date "2024.03.05"]
[Round "1"]
[White "HalfIsCrayfish"]
[Black "PNEPaul"]
[Result "1-0"]
[WhiteElo "2536"]
[BlackElo "1932"]
[TimeControl "180+1"]
[EndTime "14:06:48 PST"]
[Termination "HalfIsCrayfish won by checkmate"]

1. e4 {[%clk 0:03:00.9]} 1... e5 {[%clk 0:02:59.3]} 2. Nc3 {[%clk 0:02:56.6]}
2... Nc6 {[%clk 0:02:58.8]} 3. g3 {[%clk 0:02:55.2]} 3... g6 {[%clk 0:02:57.9]}
4. Bg2 {[%clk 0:02:55.1]} 4... Bg7 {[%clk 0:02:57.9]} 5. d3 {[%clk 0:02:55.5]}
5... Nge7 {[%clk 0:02:57.8]} 6. Nge2 {[%clk 0:02:55.6]} 6... h6 {[%clk
0:02:57.4]} 7. Be3 {[%clk 0:02:55.1]} 7... O-O {[%clk 0:02:57]} 8. Qd2 {[%clk
0:02:55.5]} 8... Kh7 {[%clk 0:02:56.5]} 9. O-O-O {[%clk 0:02:48.3]} 9... d6
{[%clk 0:02:56.3]} 10. f3 {[%clk 0:02:47.3]} 10... Be6 {[%clk 0:02:55.6]} 11. h4
{[%clk 0:02:45.9]} 11... Nd4 {[%clk 0:02:53]} 12. h5 {[%clk 0:02:42.3]} 12... g5
{[%clk 0:02:52.3]} 13. f4 {[%clk 0:02:40.1]} 13... Nxe2+ {[%clk 0:02:48]} 14.
Nxe2 {[%clk 0:02:36.9]} 14... exf4 {[%clk 0:02:44.5]} 15. gxf4 {[%clk
0:02:34.7]} 15... Bxa2 {[%clk 0:02:42.5]} 16. fxg5 {[%clk 0:02:31.6]} 16... hxg5
{[%clk 0:02:34.6]} 17. Bxg5 {[%clk 0:02:22.3]} 17... Qd7 {[%clk 0:02:33.7]} 18.
Nc3 {[%clk 0:02:01.6]} 18... Be6 {[%clk 0:02:23]} 19. Rdf1 {[%clk 0:02:00.8]}
19... b5 {[%clk 0:02:09.4]} 20. h6 {[%clk 0:01:58.7]} 20... Bh8 {[%clk 0:02:06]}
21. Bf6 {[%clk 0:01:59.1]} 21... b4 {[%clk 0:02:01.7]} 22. Bxh8 {[%clk
0:01:54.8]} 22... Rxh8 {[%clk 0:02:00.3]} 23. Nd5 {[%clk 0:01:43.3]} 23... Bxd5
{[%clk 0:01:35.9]} 24. exd5 {[%clk 0:01:42.1]} 24... Raf8 {[%clk 0:01:24.1]} 25.
Bh3 {[%clk 0:01:35.6]} 25... Qa4 {[%clk 0:01:20.9]} 26. Qg5 {[%clk 0:01:30.7]}
26... Rhg8 {[%clk 0:01:09.8]} 27. Qxe7 {[%clk 0:01:27.1]} 27... Qa1+ {[%clk
0:00:57.2]} 28. Kd2 {[%clk 0:01:25.4]} 28... Qxb2 {[%clk 0:00:57.2]} 29. Rxf7+
{[%clk 0:01:15.6]} 29... Rxf7 {[%clk 0:00:56.7]} 30. Qxf7+ {[%clk 0:01:15.6]}
30... Kh8 {[%clk 0:00:56.8]} 31. h7 {[%clk 0:00:20.7]} 31... Rb8 {[%clk
0:00:49.5]} 32. Be6 {[%clk 0:00:16.1]} 32... Qc3+ {[%clk 0:00:44.4]} 33. Kd1
{[%clk 0:00:15.9]} 33... Qa1+ {[%clk 0:00:42.9]} 34. Ke2 {[%clk 0:00:16.2]}
34... Qe5+ {[%clk 0:00:41.9]} 35. Kf3 {[%clk 0:00:14.6]} 35... Qg7 {[%clk
0:00:29]} 36. Qg8+ {[%clk 0:00:12.3]} 36... Rxg8 {[%clk 0:00:27.6]} 37. hxg8=Q#
{[%clk 0:00:13.2]} 1-0